fUST/lending_fUST_20250722
["ID","MTS","AMOUNT","RATE_DAILY","PERIOD"]
[373900237,1753143048074,-460.0,0.00019406,2]
[373900239,1753143048083,-460.0,0.00019406,2]
[373900241,1753143048095,-460.0,0.00019406,2]
[373900243,1753143048104,-460.0,0.00019406,2]
[373900245,1753143048114,-3242.26,0.00019406,2]
[373900247,1753143048124,-709.56,0.00019406,2]
[373900249,1753143048134,-759.56,0.00019406,2]
[373900251,1753143048143,-680.08,0.00019406,2]
[373900253,1753143048153,-460.0,0.00019406,2]
[373900255,1753143048162,-629.79,0.00019406,2]
[373900257,1753143048171,-727.58,0.00019406,2]
[373900258,1753143048182,-575.49,0.00019406,2]
[373900261,1753143048193,-1087.65,0.00019406,2]
[373900262,1753143048205,-2705.69,0.00019406,2]
[373900264,1753143048215,-460.0,0.00019406,2]
[373900266,1753143048224,-460.0,0.00019406,2]
[373900268,1753143048233,-460.0,0.00019406,2]
[373900270,1753143048245,-460.0,0.00019406,2]
[373900272,1753143048254,-1083.1,0.00019406,2]
[373900274,1753143048268,-151.0,0.00019406,2]
[373900275,1753143048281,-731.54,0.00019406,2]
[373900276,1753143048291,-526.74,0.00019406,2]
[373900277,1753143048301,-684.06,0.00019406,2]
[373900278,1753143048310,-460.0,0.00019406,2]
[373900279,1753143048319,-460.0,0.00019406,2]
[373900280,1753143048328,-460.0,0.00019406,2]
[373900281,1753143048339,-618.35,0.00019406,2]
[373900283,1753143048349,-460.0,0.00019406,2]
[373900285,1753143048358,-482.13,0.00019406,2]
[373900287,1753143048369,-813.91,0.00019406,2]
[373900290,1753143048379,-745.33,0.00019406,2]
[373900292,1753143048389,-460.0,0.00019406,2]
[373900294,1753143048398,-460.0,0.00019406,2]
[373900296,1753143048408,-739.44,0.00019407,2]
[373900298,1753143048417,-460.0,0.00019407,2]
[373900300,1753143048427,-460.0,0.00019407,2]
[373900302,1753143048437,-460.0,0.00019407,2]
[373900304,1753143048447,-924.5,0.00019407,2]
[373900306,1753143048456,-460.0,0.00019407,2]
[373900307,1753143048466,-460.0,0.00019407,2]
[373900309,1753143048475,-460.0,0.00019407,2]
[373900311,1753143048484,-1307.63,0.00019407,2]
[373900313,1753143048494,-664.83,0.00019407,2]
[373900315,1753143048505,-1091.56,0.00019407,2]
[373900317,1753143048515,-460.0,0.00019408,2]
[373900319,1753143048525,-460.0,0.00019408,2]
[373900321,1753143048534,-4747.22,0.00019408,2]
[373900323,1753143048544,-460.0,0.00019408,2]
[373900325,1753143048553,-460.0,0.00019408,2]
[373900328,1753143048563,-2794.73,0.00019408,2]
[373900330,1753143048572,-460.0,0.00019408,2]
[373900332,1753143048581,-1601.66,0.00019408,2]
[373900334,1753143048592,-460.0,0.00019408,2]
[373900336,1753143048601,-460.0,0.00019408,2]
[373900338,1753143048611,-5186.09,0.00019408,2]
[373900340,1753143048621,-151.0,0.00019408,2]
[373900342,1753143048631,-1391.65,0.00019408,2]
[373900344,1753143048640,-1583.52,0.00019409,2]
[373900346,1753143048649,-151.589671,0.00019409,2]
[373900348,1753143048659,-151.0,0.00019409,2]
[373900350,1753143048668,-2360.0,0.0001941,2]
[373900352,1753143048678,-463.99,0.0001941,2]
[373900354,1753143048687,-900.98538591,0.0001941,2]
[373900359,1753143048728,-678.34461409,0.0001941,2]
[373900361,1753143048737,-1711.41,0.0001941,2]
[373900363,1753143048746,-151.0,0.00019411,2]
[373900365,1753143048756,-151.0,0.00019411,2]
[373900367,1753143048765,-151.0,0.00019411,2]
[373900369,1753143048774,-1078.0,0.00019429,2]
[373900371,1753143048783,-1078.0,0.00019485,2]
[373900373,1753143048792,-1180.626,0.00019511,2]
[373900375,1753143048802,-178.425,0.00019511,2]
[373900377,1753143048812,-429.5320659,0.00019537,2]
[373900379,1753143048821,-858.9222145,0.00019537,2]
[373900381,1753143048832,-180.0,0.00019538,2]
[373900383,1753143048843,-1000.0,0.00019541,2]
[373900385,1753143048853,-500.0,0.00019544,2]
[373900387,1753143048863,-1500.0,0.00019544,2]
[373900389,1753143048872,-1034.06014584,0.00019555,2]
[373900391,1753143048881,-1500.0,0.00019555,2]
[373900393,1753143048891,-160.0,0.00019565,2]
[373900395,1753143048901,-151.0,0.000196,2]
[373900397,1753143048911,-1078.0,0.0001961,2]
[373900399,1753143048920,-300.00435631,0.00019679,2]
[373900401,1753143048933,-460.0,0.00019679,2]
[373900403,1753143048943,-460.0,0.00019679,2]
[373900405,1753143048953,-465.32,0.00019679,2]
[373900407,1753143048963,-1860.5,0.00019679,2]
[373900409,1753143048972,-460.0,0.0001968,2]
[373900411,1753143048981,-460.0,0.0001968,2]
[373900413,1753143048990,-151.0,0.0001968,2]
[373900415,1753143049000,-460.0,0.0001968,2]
[373900417,1753143049009,-436.44940878,0.0001968,2]
[373900419,1753143049019,-460.0,0.0001968,2]
[373900436,1753143049171,-460.0,0.0001968,2]
[373900439,1753143049181,-460.0,0.0001968,2]
[373900440,1753143049193,-460.0,0.0001968,2]
[373900441,1753143049205,-161.40619458,0.0001968,2]
[373900442,1753143049218,-308.49380542,0.0001968,2]
[373900443,1753143049227,-454.56819458,0.0001968,2]
[373900444,1753143049240,-241.85180542,0.0001968,2]
[373900445,1753143049250,-460.0,0.0001968,2]
[373900446,1753143049258,-460.0,0.0001968,2]
[373900447,1753143049268,-151.0,0.0001968,2]
[373900448,1753143049277,-460.0,0.0001968,2]
[373900449,1753143049286,-460.0,0.0001968,2]
[373900450,1753143049296,-2845.24749493,0.0001968,2]
[373900451,1753143049308,-274.19624595,0.0001968,2]
[373900452,1753143049321,-122.81625912,0.0001968,2]
[373900453,1753143049331,-280.85655087,0.0001968,2]
[373900454,1753143049347,-428.70344913,0.0001968,2]
[373900455,1753143049357,-759.56,0.0001968,2]
[373900456,1753143049367,-680.08,0.0001968,2]
[373900457,1753143049377,-213.56102739,0.0001968,2]
[373900458,1753143049390,-246.43897261,0.0001968,2]
[373900459,1753143049400,-629.79,0.0001968,2]
[373900460,1753143049410,-93.51136385,0.0001968,2]
[373900461,1753143049503,-460.0,0.00017762,2]
[373900462,1753143049512,-805.05,0.0001804,2]
[373900463,1753143049522,-805.05,0.00018314,2]
[373900464,1753143049531,-80.16735068,0.00018588,2]
[373900465,1753143049543,-724.88264932,0.00018588,2]
[373900466,1753143049552,-124.91914493,0.00018862,2]
[373900467,1753143049565,-680.13085507,0.00018862,2]
[373900468,1753143049574,-634.06863615,0.0001968,2]
[373900469,1753143049584,-575.49,0.0001968,2]
[373900470,1753143049594,-1087.65,0.0001968,2]
[373900471,1753143049603,-1158.8733892,0.0001968,2]
[373900564,1753143936135,-150.0,0.00017604,2]
[373900565,1753143936156,-246.0,0.00017747,2]
[373900566,1753143936176,-160.0,0.00017749,2]
[373900567,1753143936198,-300.0,0.00017758,2]
[373900568,1753143936220,-1200.0,0.00017758,2]
[373900569,1753143936242,-149.75094423,0.00017759,2]
[373900574,1753144126806,-216.71317498,0.0001676,2]
[373900575,1753144128399,-78.78367902,0.0001676,2]
[373900576,1753144129642,310.10627398,0.0001675,2]
[373900578,1753144217923,164.040792,0.00013699,2]
[373900606,1753144232286,-285.08312346,0.00017487,2]
[373900607,1753144232296,-583.73520932,0.00017664,2]
[373900608,1753144232306,-150.0,0.00017672,2]
[373900609,1753144232315,-503.49,0.00017751,3]
[373900610,1753144232325,-251.74,0.00017751,3]
[373900611,1753144232334,-755.27,0.00017751,3]
[373900612,1753144232344,-300.0,0.00017758,2]
[373900613,1753144232353,-460.0,0.00017758,2]
[373900614,1753144232363,-310.24905577,0.00017759,2]
[373900615,1753144232372,-460.43973544,0.00017759,2]
[373900616,1753144232382,-460.0,0.00017759,2]
[373900617,1753144232391,-460.0,0.00017759,2]
[373900618,1753144232401,-460.0,0.00017759,2]
[373900619,1753144232410,-209.48986205,0.00017759,2]
[373900620,1753144232419,-460.0,0.00017759,2]
[373900621,1753144232428,-460.0,0.00017759,2]
[373900622,1753144232438,-460.0,0.00017759,2]
[373900623,1753144232448,-460.0,0.00017759,2]
[373900624,1753144232458,-460.0,0.00017759,2]
[373900625,1753144232467,-460.0,0.00017759,2]
[373900626,1753144232476,-460.0,0.00017759,2]
[373900627,1753144232486,-460.0,0.00017759,2]
[373900628,1753144232495,-460.0,0.00017759,2]
[373900629,1753144232507,-468.47513244,0.00017759,2]
[373900630,1753144232523,-460.0,0.00017759,2]
[373900631,1753144232541,-4562.36,0.00017759,2]
[373900632,1753144232551,-460.0,0.00017759,2]
[373900633,1753144232561,-460.0,0.00017759,2]
[373900634,1753144232570,-460.0,0.00017759,2]
[373900635,1753144232579,-460.0,0.00017759,2]
[373900636,1753144232589,-460.0,0.00017759,2]
[373900637,1753144232599,-460.0,0.00017759,2]
[373900638,1753144232608,-356.92758961,0.00017759,2]
[373900639,1753144232618,-2836.05,0.00017759,2]
[373900640,1753144232627,-460.0,0.00017759,2]
[373900641,1753144232637,-460.0,0.00017759,2]
[373900642,1753144232647,-767.13,0.00017759,2]
[373900643,1753144232658,-460.0,0.00017759,2]
[373900644,1753144232667,-460.0,0.00017759,2]
[373900645,1753144232677,-460.0,0.00017759,2]
[373900646,1753144232687,-460.0,0.00017759,2]
[373900647,1753144232697,-1562.65,0.00017759,2]
[373900648,1753144232707,-460.0,0.00017759,2]
[373900649,1753144232717,-598.98653577,0.00017759,2]
[373900650,1753144232727,-460.0,0.00017759,2]
[373900651,1753144232737,-460.0,0.00017759,2]
[373900652,1753144232747,-460.0,0.00017759,2]
[373900653,1753144232756,-460.0,0.00017759,2]
[373900654,1753144232767,-460.0,0.00017759,2]
[373900655,1753144232776,-460.0,0.00017759,2]
[373900656,1753144232786,-460.0,0.00017759,2]
[373900657,1753144232795,-460.0,0.00017759,2]
[373900658,1753144232805,-2891.43,0.00017759,2]
[373900659,1753144232816,-460.0,0.00017759,2]
[373900660,1753144232829,-1053.03,0.00017759,2]
[373900661,1753144232838,-460.0,0.00017759,2]
[373900662,1753144232850,-460.0,0.00017759,2]
[373900663,1753144232861,-460.0,0.00017759,2]
[373900664,1753144232870,-460.0,0.00017759,2]
[373900665,1753144232880,-1705.42,0.00017759,2]
[373900666,1753144232890,-460.0,0.00017759,2]
[373900667,1753144232899,-463.13925988,0.00017759,2]
[373900668,1753144232909,-606.11,0.00017759,2]
[373900669,1753144232918,-460.0,0.00017759,2]
[373900670,1753144232928,-460.0,0.00017759,2]
[373900671,1753144232937,-480.29,0.00017759,2]
[373900672,1753144232948,-460.0,0.00017759,2]
[373900673,1753144232957,-795.68,0.00017759,2]
[373900674,1753144232966,-460.0,0.0001776,2]
[373900675,1753144232976,-460.0,0.0001776,2]
[373900676,1753144232985,-197.52058712,0.0001776,2]
[373900677,1753144232994,-460.0,0.0001776,2]
[373900678,1753144233003,-460.0,0.0001776,2]
[373900679,1753144233013,-460.0,0.0001776,2]
[373900680,1753144233023,-478.80915902,0.0001776,2]
[373900681,1753144233033,-460.0,0.0001776,2]
[373900682,1753144233043,-460.0,0.0001776,2]
[373900683,1753144233053,-460.0,0.0001776,2]
[373900684,1753144233063,-460.0,0.0001776,2]
[373900685,1753144233073,-460.0,0.0001776,2]
[373900686,1753144233083,-460.0,0.0001776,2]
[373900687,1753144233093,-196.46573234,0.0001776,2]
[373900688,1753144233104,-460.11075579,0.0001776,2]
[373900689,1753144233114,-460.0,0.0001776,2]
[373900690,1753144233124,-460.0,0.0001776,2]
[373900691,1753144233134,-460.0,0.0001776,2]
[373900692,1753144233144,-460.0,0.0001776,2]
[373900693,1753144233153,-460.0,0.0001776,2]
[373900694,1753144233163,-342.261144,0.0001776,2]
[373900695,1753144233173,-460.0,0.0001776,2]
[373900696,1753144233183,-460.0,0.0001776,2]
[373900697,1753144233192,-460.0,0.0001776,2]
[373900698,1753144233203,-460.0,0.0001776,2]
[373900699,1753144233213,-460.0,0.0001776,2]
[373900700,1753144233223,-460.0,0.0001776,2]
[373900701,1753144233233,-460.0,0.0001776,2]
[373900702,1753144233242,-460.0,0.0001776,2]
[373900703,1753144233252,-460.0,0.0001776,2]
[373900704,1753144233263,-460.0,0.0001776,2]
[373900705,1753144233273,-460.0,0.0001776,2]
[373900706,1753144233282,-460.0,0.0001776,2]
[373900707,1753144233292,-463.93652107,0.0001776,2]
[373900708,1753144233302,-460.0,0.0001776,2]
[373900709,1753144233312,-595.96505135,0.0001776,2]
[373900710,1753144233321,-460.0,0.0001776,2]
[373900711,1753144233331,-460.0,0.0001776,2]
[373900712,1753144233340,-460.0,0.0001776,2]
[373900713,1753144233350,-460.0,0.0001776,2]
[373900714,1753144233359,-461.27021462,0.0001776,2]
[373900715,1753144233369,-460.0,0.0001776,2]
[373900716,1753144233379,-262.36707031,0.0001776,2]
[373900717,1753144233389,-460.0,0.0001776,2]
[373900718,1753144233399,-460.0,0.0001776,2]
[373900719,1753144233408,-460.0,0.0001776,2]
[373900720,1753144233418,-460.0,0.0001776,2]
[373900721,1753144233427,-460.0,0.0001776,2]
[373900722,1753144233436,-460.0,0.0001776,2]
[373900723,1753144233445,-460.0,0.0001776,2]
[373900724,1753144233455,-460.0,0.0001776,2]
[373900725,1753144233465,-460.0,0.0001776,2]
[373900726,1753144233475,-460.0,0.0001776,2]
[373900727,1753144233485,-460.0,0.0001776,2]
[373900728,1753144233495,-460.0,0.0001776,2]
[373900729,1753144233504,-460.0,0.0001776,2]
[373900730,1753144233514,-460.0,0.0001776,2]
[373900731,1753144233524,-460.0,0.0001776,2]
[373900732,1753144233533,-460.0,0.0001776,2]
[373900733,1753144233542,-460.0,0.0001776,2]
[373900734,1753144233552,-460.0,0.0001776,2]
[373900735,1753144233562,-460.0,0.0001776,2]
[373900736,1753144233572,-460.0,0.0001776,2]
[373900737,1753144233581,-460.0,0.0001776,2]
[373900738,1753144233591,-500.0,0.0001776,2]
[373900739,1753144233600,-460.0,0.0001776,2]
[373900740,1753144233610,-460.0,0.0001776,2]
[373900741,1753144233619,-562.69462351,0.0001776,2]
[373900742,1753144233628,-460.0,0.0001776,2]
[373900743,1753144233638,-460.0,0.0001776,2]
[373900744,1753144233648,-460.0,0.0001776,2]
[373900745,1753144233657,-558.09422032,0.0001776,2]
[373900746,1753144233667,-460.0,0.0001776,2]
[373900747,1753144233676,-460.0,0.0001776,2]
[373900748,1753144233686,-460.0,0.0001776,2]
[373900749,1753144233695,-460.0,0.0001776,2]
[373900750,1753144233705,-460.0,0.0001776,2]
[373900751,1753144233716,-460.0,0.0001776,2]
[373900752,1753144233725,-460.0,0.0001776,2]
[373900753,1753144233735,-460.0,0.0001776,2]
[373900754,1753144233745,-460.0,0.0001776,2]
[373900755,1753144233754,-460.0,0.0001776,2]
[373900756,1753144233764,-460.0,0.0001776,2]
[373900757,1753144233773,-460.0,0.0001776,2]
[373900758,1753144233782,-460.0,0.0001776,2]
[373900759,1753144233792,-460.0,0.0001776,2]
[373900760,1753144233801,-460.0,0.0001776,2]
[373900761,1753144233811,-460.0,0.0001776,2]
[373900762,1753144233821,-460.0,0.0001776,2]
[373900763,1753144233832,-460.0,0.0001776,2]
[373900764,1753144233842,-460.0,0.0001776,2]
[373900765,1753144233851,-460.0,0.0001776,2]
[373900766,1753144233861,-460.0,0.0001776,2]
[373900767,1753144233872,-460.0,0.0001776,2]
[373900768,1753144233881,-460.0,0.0001776,2]
[373900769,1753144233891,-460.0,0.0001776,2]
[373900770,1753144233905,-460.0,0.0001776,2]
[373900771,1753144233915,-479.80271025,0.0001776,2]
[373900772,1753144233924,-460.0,0.0001776,2]
[373900773,1753144233934,-460.0,0.0001776,2]
[373900774,1753144233943,-460.0,0.0001776,2]
[373900775,1753144233954,-460.0,0.0001776,2]
[373900776,1753144233964,-460.0,0.0001776,2]
[373900777,1753144233974,-460.0,0.0001776,2]
[373900778,1753144233985,-460.0,0.0001776,2]
[373900779,1753144233994,-460.0,0.0001776,2]
[373900780,1753144234004,-460.0,0.0001776,2]
[373900781,1753144234013,-460.0,0.0001776,2]
[373900782,1753144234022,-460.0,0.0001776,2]
[373900783,1753144234032,-460.0,0.0001776,2]
[373900784,1753144234043,-460.0,0.0001776,2]
[373900785,1753144234052,-460.0,0.0001776,2]
[373900786,1753144234062,-460.0,0.0001776,2]
[373900787,1753144234071,-460.0,0.0001776,2]
[373900788,1753144234080,-498.96,0.0001776,2]
[373900789,1753144234089,-460.0,0.0001776,2]
[373900790,1753144234098,-460.0,0.0001776,2]
[373900791,1753144234108,-460.0,0.0001776,2]
[373900792,1753144234118,-460.0,0.0001776,2]
[373900793,1753144234128,-377.36032985,0.0001776,2]
[373900794,1753144234137,-685.5,0.0001776,2]
[373900795,1753144234147,-460.0,0.0001776,2]
[373900796,1753144234157,-460.0,0.0001776,2]
[373900797,1753144234166,-460.60718211,0.0001776,2]
[373900798,1753144234176,-461.59801402,0.0001776,2]
[373900799,1753144234185,-460.0,0.0001776,2]
[373900800,1753144234194,-460.0,0.0001776,2]
[373900801,1753144234204,-460.0,0.0001776,2]
[373900802,1753144234214,-361.7808345,0.0001776,2]
[373900803,1753144234223,-460.0,0.0001776,2]
[373900804,1753144234232,-468.47,0.0001776,2]
[373900805,1753144234242,-460.0,0.0001776,2]
[373900806,1753144234252,-460.0,0.0001776,2]
[373900807,1753144234262,-460.0,0.0001776,2]
[373900808,1753144234271,-460.80861372,0.0001776,2]
[373900809,1753144234281,-460.0,0.0001776,2]
[373900810,1753144234291,-517.26472086,0.0001776,2]
[373900811,1753144234299,-460.0,0.0001776,2]
[373900812,1753144234308,-460.0,0.0001776,2]
[373900813,1753144234318,-460.0,0.0001776,2]
[373900814,1753144234327,-460.0,0.0001776,2]
[373900815,1753144234337,-735.58,0.0001776,2]
[373900816,1753144234346,-460.0,0.0001776,2]
[373900817,1753144234357,-1682.02,0.0001776,2]
[373900818,1753144234366,-460.0,0.0001776,2]
[373900819,1753144234376,-461.1115783,0.0001776,2]
[373900820,1753144234385,-460.0,0.0001776,2]
[373900821,1753144234405,-460.20307646,0.0001776,2]
[373900822,1753144234414,-460.0,0.0001776,2]
[373900823,1753144234424,-460.0,0.0001776,2]
[373900824,1753144234433,-460.0,0.0001776,2]
[373900825,1753144234442,-462.04488447,0.0001776,2]
[373900826,1753144234452,-466.16899632,0.0001776,2]
[373900827,1753144234461,-303.6768071,0.0001776,2]
[373900828,1753144234480,-321.8131929,0.0001776,2]
[373900829,1753144234489,-697.7,0.0001776,2]
[373900830,1753144234499,-393.96278121,0.0001776,2]
[373900831,1753144234510,-66.03721879,0.0001776,2]
[373900832,1753144234520,-462.93561229,0.0001776,2]
[373900833,1753144234530,-436.98220973,0.0001776,2]
[373900834,1753144234542,-121.77842217,0.0001776,2]
[373900835,1753144234551,-1040.54,0.0001776,2]
[373900836,1753144234562,-460.0,0.0001776,2]
[373900837,1753144234571,-460.0,0.0001776,2]
[373900838,1753144234581,-460.0,0.0001776,2]
[373900839,1753144234591,-460.0,0.0001776,2]
[373900840,1753144234600,-460.0,0.0001776,2]
[373900841,1753144234610,-460.0,0.0001776,2]
[373900842,1753144234620,-572.93,0.0001776,2]
[373900843,1753144234629,-460.0,0.0001776,2]
[373900844,1753144234639,-460.0,0.0001776,2]
[373900845,1753144234650,-558.8217057,0.0001776,2]
[373900846,1753144234659,-460.70945425,0.0001776,2]
[373900847,1753144234669,-460.40829595,0.0001776,2]
[373900848,1753144234679,-460.0,0.0001776,2]
[373900849,1753144234688,-501.94804868,0.0001776,2]
[373900850,1753144234698,-460.0,0.0001776,2]
[373900851,1753144234708,-460.0,0.0001776,2]
[373900852,1753144234718,-460.0,0.0001776,2]
[373900853,1753144234728,-460.0,0.0001776,2]
[373900854,1753144234737,-525.49,0.0001776,2]
[373900855,1753144234747,-460.0,0.0001776,2]
[373900856,1753144234756,-460.0,0.0001776,2]
[373900857,1753144234766,-461.82414233,0.0001776,2]
[373900858,1753144234775,-500.0,0.0001776,2]
[373900859,1753144234786,-460.0,0.0001776,2]
[373900860,1753144234795,-460.0,0.0001776,2]
[373900861,1753144234805,-460.0,0.0001776,2]
[373900862,1753144234815,-460.0,0.0001776,2]
[373900863,1753144234828,-460.0,0.0001776,2]
[373900864,1753144234837,-460.0,0.0001776,2]
[373900865,1753144234847,-460.0,0.0001776,2]
[373900866,1753144234857,-460.0,0.0001776,2]
[373900867,1753144234867,-460.0,0.0001776,2]
[373900868,1753144234877,-460.0,0.0001776,2]
[373900869,1753144234887,-460.0,0.0001776,2]
[373900870,1753144234898,-460.0,0.0001776,2]
[373900871,1753144234909,-460.0,0.0001776,2]
[373900872,1753144234919,-460.0,0.0001776,2]
[373900873,1753144234929,-460.0,0.0001776,2]
[373900874,1753144234939,-500.0,0.0001776,2]
[373900875,1753144234949,-651.97,0.0001776,2]
[373900876,1753144234958,-232.23016428,0.0001776,2]
[373900877,1753144234968,-460.0,0.0001776,2]
[373900878,1753144234978,-460.0,0.0001776,2]
[373900879,1753144234987,-460.0,0.0001776,2]
[373900880,1753144234997,-460.0,0.0001776,2]
[373900881,1753144235009,-460.0,0.0001776,2]
[373900882,1753144235018,-460.0,0.0001776,2]
[373900883,1753144235027,-460.0,0.0001776,2]
[373900884,1753144235039,-460.0,0.0001776,2]
[373900885,1753144235048,-460.0,0.0001776,2]
[373900886,1753144235058,-460.0,0.0001776,2]
[373900887,1753144235068,-460.0,0.0001776,2]
[373900888,1753144235077,-460.0,0.0001776,2]
[373900889,1753144235087,-460.0,0.0001776,2]
[373900890,1753144235096,-460.0,0.0001776,2]
[373900891,1753144235106,-460.0,0.0001776,2]
[373900892,1753144235115,-460.0,0.0001776,2]
[373900893,1753144235126,-460.0,0.0001776,2]
[373900894,1753144235135,-460.0,0.0001776,2]
[373900895,1753144235145,-460.0,0.0001776,2]
[373900896,1753144235156,-460.0,0.0001776,2]
[373900897,1753144235166,-460.0,0.0001776,2]
[373900898,1753144235175,-460.0,0.0001776,2]
[373900899,1753144235185,-717.15,0.0001776,2]
[373900900,1753144235194,-460.0,0.0001776,2]
[373900901,1753144235204,-746.08,0.0001776,2]
[373900902,1753144235214,-785.58,0.0001776,2]
[373900903,1753144235223,-460.0,0.0001776,2]
[373900904,1753144235234,-460.0,0.0001776,2]
[373900905,1753144235243,-646.22,0.0001776,2]
[373900906,1753144235253,-460.0,0.0001776,2]
[373900907,1753144235263,-460.0,0.0001776,2]
[373900908,1753144235272,-460.0,0.0001776,2]
[373900909,1753144235281,-460.0,0.0001776,2]
[373900910,1753144235291,-460.0,0.0001776,2]
[373900911,1753144235300,-460.0,0.0001776,2]
[373900912,1753144235310,-413.31971394,0.0001776,2]
[373900913,1753144235319,-460.0,0.0001776,2]
[373900914,1753144235328,-460.0,0.0001776,2]
[373900915,1753144235337,-460.0,0.0001776,2]
[373900916,1753144235346,-465.86622321,0.0001776,2]
[373900917,1753144235355,-460.0,0.0001776,2]
[373900918,1753144235365,-460.44533274,0.00017761,2]
[373900919,1753144235374,-463.24333493,0.00017761,2]
[373900920,1753144235384,-460.0,0.00017761,2]
[373900921,1753144235393,-460.0,0.00017761,2]
[373900922,1753144235402,-1000.0,0.00017761,2]
[373900923,1753144235412,-257.15447415,0.00017761,2]
[373900924,1753144235421,-460.0,0.00017761,2]
[373900925,1753144235431,-460.0,0.00017761,2]
[373900926,1753144235440,-387.82226165,0.00017761,2]
[373900927,1753144235450,-460.0,0.00017761,2]
[373900928,1753144235459,-460.0,0.00017761,2]
[373900929,1753144235468,-460.0,0.00017761,2]
[373900930,1753144235477,-728.3,0.00017761,2]
[373900931,1753144235487,-460.0,0.00017761,2]
[373900932,1753144235496,-460.0,0.00017761,2]
[373900933,1753144235506,-460.0,0.00017761,2]
[373900934,1753144235516,-460.0,0.00017761,2]
[373900935,1753144235525,-460.0,0.00017761,2]
[373900936,1753144235534,-460.0,0.00017761,2]
[373900937,1753144235544,-460.0,0.00017761,2]
[373900938,1753144235553,-460.0,0.00017761,2]
[373900939,1753144235562,-460.0,0.00017761,2]
[373900940,1753144235572,-500.0,0.00017761,2]
[373900941,1753144235581,-500.0,0.00017761,2]
[373900942,1753144235591,-460.0,0.00017761,2]
[373900943,1753144235600,-460.0,0.00017761,2]
[373900944,1753144235610,-500.0,0.00017761,2]
[373900945,1753144235619,-925.26,0.00017761,2]
[373900946,1753144235628,-460.0,0.00017761,2]
[373900947,1753144235637,-410.59090171,0.00017761,2]
[373900948,1753144235646,-460.0,0.00017761,2]
[373900949,1753144235656,-460.0,0.00017761,2]
[373900950,1753144235665,-460.0,0.00017761,2]
[373900951,1753144235675,-460.0,0.00017761,2]
[373900952,1753144235684,-460.0,0.00017761,2]
[373900953,1753144235694,-460.0,0.00017761,2]
[373900954,1753144235704,-460.0,0.00017761,2]
[373900955,1753144235713,-460.0,0.00017761,2]
[373900956,1753144235723,-460.0,0.00017761,2]
[373900957,1753144235733,-460.0,0.00017761,2]
[373900958,1753144235743,-460.0,0.00017761,2]
[373900959,1753144235752,-460.0,0.00017761,2]
[373900960,1753144235761,-460.0,0.00017761,2]
[373900961,1753144235771,-460.0,0.00017761,2]
[373900962,1753144235780,-460.0,0.00017761,2]
[373900963,1753144235789,-460.0,0.00017761,2]
[373900964,1753144235799,-460.0,0.00017761,2]
[373900965,1753144235808,-522.71393349,0.00017761,2]
[373900966,1753144235818,-164.15722769,0.00017761,2]
[373900967,1753144235986,-460.0,0.00017761,2]